Workbook

Sheet RTA1
B7: Releases of IED Pollutants to Air
B10: Operational Summary for the year: | C10: 2019 | D10: Select Reporting Year
B12: Operator: | F12: Select Operator
B15: Site Location: | F15: Select Site Location
B17: Permit Number: | C17: =IF(ISERROR(VLOOKUP(TheSite, PlantDetails, 3, FALSE)), "", VLOOKUP(TheSite, PlantDetails, 3, FALSE)) ->  | D17: LCP Reference: | E17: =IF(ISERROR(VLOOKUP(TheSite, PlantDetails, 2, FALSE)), "", VLOOKUP(TheSite, PlantDetails, 2, FALSE)) -> 
B19: Note: beginning 1 January 2016, a return is required for each LCP within 28 days of the end of each quarter
B21: Air Emissions: | C21: SO2 | D21: NOx (tonnes) | E21: Dust (tonnes)
C22: (tonnes)
B23: January
B24: February
B25: March
B26: Total for Quarter 1 | C26: =SUM(C23:C25) -> 0 | D26: =SUM(D23:D25) -> 0 | E26: =SUM(E23:E25) -> 0
B27: April
B28: May
B29: June
B30: Total for Quarter 2 | C30: =SUM(C27:C29) -> 0 | D30: =SUM(D27:D29) -> 0 | E30: =SUM(E27:E29) -> 0
B31: July
B32: August
B33: September
B34: Total for Quarter 3 | C34: =SUM(C31:C33) -> 0 | D34: =SUM(D31:D33) -> 0 | E34: =SUM(E31:E33) -> 0
B35: October
B36: November
B37: December
B38: Total for Quarter 4 | C38: =SUM(C35:C37) -> 0 | D38: =SUM(D35:D37) -> 0 | E38: =SUM(E35:E37) -> 0
B40: Annual Total | C40: =SUM(Q4_SO2+Q3_SO2+Q2_SO2+Q1_SO2) -> 0 | D40: =SUM(Q4_NOx+Q3_NOx+Q2_NOx+Q1_NOx) -> 0 | E40: =SUM(Q4_PM+Q3_PM+Q2_PM+Q1_PM) -> 0
B41: =IF(SUMPRODUCT(ISTEXT($C$23:$E$29)+ISTEXT($C$31:$E$37))>0,"Please do not use text in place of numbers","") -> 
B42: Please do not enter text
B43: I confirm that this data is not knowingly reported with any omissions, errors or misrepresentation. All measurement equipment used to generate the data has been appropriately calibrated and maintained regularly; this includes calibration against traceable international measurement standards where available. The data is supported by appropriate record keeping. IT is designed, documented, tested, implemented, controlled and maintained to ensure reliable, accurate and timely processing of data; data handling and calculations have been appropriate; data has been checked for false and unusual measurements. The annual report of emissions for the above participating large combustion plant has been verified in accordance with the requirements of the Large Combustion Plants (Transitional National Plan) Regulations 2015.
B45: Name of the operator staff responsible for the quality of data supplied to the Register in accordance with the principles above. | E45: Date:
B47: 1. Data must be reported in tonnes to 2 decimal places
B48: 2. All forms must be saved in the format IED_RTA1_Quarter-Inventory_Year_LCP Reference i.e. IED_RTA1_Q1_20xx_LCPxxx
B49: 3. No PDF documents shall be accepted
B50: 4. Upload Forms held on GOV.UK will be accepted other variants of the forms will be automatically rejected which may impact statutory obligations to report on time.

Sheet Important Information
D3: IED RTA1 FILE FORMAT - Guidance
B5: 1 | C5: File Format - Description Breakdown
D7: Regime Form | E7: - | F7: Qtr | G7: - | H7: Year | I7: - | J7: LCP Ref.
E10: A
G13: B
I15: C
K18: D
B21: 2 | C21: Description Breakdown - Reference to IED RTA1 Form
E29: A | F29: IED RTA1
G31: B | H31: Q1
H32: Q2
H33: Q3
H34: Q4
I36: C | J36: 2016 - 2020
K42: D | L42: 5 to 418 | N42: LCP Ref: | O42: =IF(ISERROR(VLOOKUP(TheSite, PlantDetails, 2, FALSE)), "", VLOOKUP(TheSite, PlantDetails, 2, FALSE)) -> 
B46: 3 | C46: Real Examples of how IED RTA1 forms must be saved & emailed to the Environment Agency: | P46: TNP@environment-agency.gov.uk
D48: Example File Format: | L48: This equates to the following descriptions:
C50: IED_RTA1 _Q1_2016_LCPxxx | L50: Quarter 1 (return)-2016-LCP Reference XXX (Refer to D)
C52: IED_RTA1 _Q2_2016_LCPxxx | L52: Quarter 2 (return)-2016-LCP Reference XXX (Refer to D)
C54: IED_RTA1 _Q3_2016_LCPxxx | L54: Quarter 3 (return)-2016-LCP Reference XXX (Refer to D)
C56: IED_RTA1 _Q4_2016_LCPxxx | L56: Quarter 4 (return)-2016-LCP Reference XXX (Refer to D)
C58: IED_RTA1 _Q1_2017_LCPxxx | L58: Quarter 1 (return)-2017-LCP Reference XXX (Refer to D)
C63: If you require any further information or have any queries please contact: | N63: TNP@environment-agency.gov.uk

Sheet Plant Details (hidden)
A1: Hide Sheet
A4: Site Nameand LCP reference | B4: LCP Reference | C4: Permit Number | D4: Sector | E4: Operator Name | F4: Year | G4: Cross Check
A5: Kilroot Power Station | B5: 5 | C5: P0120/06A | E5: AES Kilroot Power Limited | F5: 2016 | G5: =VLOOKUP(B5,[1]NOx!$I$6:$I$101,1,FALSE) -> 5
A6: Stoneywood Mill | B6: 8 | C6: PPC/N/20005 | E6: Arjo Wiggins | F6: 2017 | G6: =VLOOKUP(B6,[1]NOx!$I$6:$I$101,1,FALSE) -> 8
A7: Boilers 9 & 10 | B7: 26 | C7: PPC/A/1090147 | E7: Ineos Infrastructure (Grangemouth) Limited | F7: 2018 | G7: =VLOOKUP(B7,[1]NOx!$I$6:$I$101,1,FALSE) -> 26
A8: Boilers 14 & 15 | B8: 29 | C8: PPC/A/1090147 | E8: Ineos Infrastructure (Grangemouth) Limited | F8: 2019 | G8: =VLOOKUP(B8,[1]NOx!$I$6:$I$101,1,FALSE) -> 29
A9: Boiler 8 | B9: 30 | C9: PPC/A/1090147 | E9: Ineos Infrastructure (Grangemouth) Limited | F9: 2020 | G9: =VLOOKUP(B9,[1]NOx!$I$6:$I$101,1,FALSE) -> 30
A10: British Salt Boiler Train | B10: 32 | C10: FP3034XD | E10: British Salt Limited | G10: =VLOOKUP(B10,[1]NOx!$I$6:$I$101,1,FALSE) -> 32
A11: British Sugar Newark Boiler Train | B11: 35 | C11: BK9385IH | E11: British Sugar Plc | G11: =VLOOKUP(B11,[1]NOx!$I$6:$I$101,1,FALSE) -> 35
A12: Bury St Edmonds Boilers CHP plant | B12: 37 | C12: BX2094IJ | E12: British Sugar Plc | G12: =VLOOKUP(B12,[1]NOx!$I$6:$I$101,1,FALSE) -> 37
A13: Wissington CHP plant | B13: 38 | C13: BX2108IQ | E13: British Sugar Plc | G13: =VLOOKUP(B13,[1]NOx!$I$6:$I$101,1,FALSE) -> 38
A14: Dalry DSM CHP (Turbine)(Boiler) | B14: 39 | C14: PPC/W/20037 | E14: DSM Nutritional Products (UK) Limited | G14: =VLOOKUP(B14,[1]NOx!$I$6:$I$101,1,FALSE) -> 39
A15: King's Lynn Power Station GT1 | B15: 48 | C15: BP3239LA | E15: Centrica KL Limited | G15: =VLOOKUP(B15,[1]NOx!$I$6:$I$101,1,FALSE) -> 48
A16: South Humber Bank Power Station GT 13 | B16: 49 | C16: MP3235LY | E16: EP SHB Limited | G16: =VLOOKUP(B16,[1]NOx!$I$6:$I$101,1,FALSE) -> 49
A17: South Humber Bank Power Station GTs 11 & 12 | B17: 50 | C17: MP3235LY | E17: EP SHB Limited | G17: =VLOOKUP(B17,[1]NOx!$I$6:$I$101,1,FALSE) -> 50
A18: South Humber Bank Power Station GTs 21 & 22 | B18: 51 | C18: MP3235LY | E18: EP SHB Limited | G18: =VLOOKUP(B18,[1]NOx!$I$6:$I$101,1,FALSE) -> 51
A19: Killingholme Power Station GT1 | B19: 52 | C19: SP3133LY | E19: Centrica KPS Limited (Closed) | G19: =VLOOKUP(B19,[1]NOx!$I$6:$I$101,1,FALSE) -> 52
A20: Killingholme Power Station GT2 | B20: 53 | C20: SP3133LY | E20: Centrica KPS Limited (Closed) | G20: =VLOOKUP(B20,[1]NOx!$I$6:$I$101,1,FALSE) -> 53
A21: Killingholme Power Station GT3 | B21: 54 | C21: SP3133LY | E21: Centrica KPS Limited (Closed) | G21: =VLOOKUP(B21,[1]NOx!$I$6:$I$101,1,FALSE) -> 54
A22: Barry Cogeneration Plant | B22: 60 | C22: EPR/JP3632ZH | E22: Dow Silicones UK Ltd | G22: =VLOOKUP(B22,[1]NOx!$I$6:$I$101,1,FALSE) -> 60
A23: Deeside Power Station GT1 | B23: 83 | C23: EPR/XP3131VK | E23: Deeside Power (UK) Limited | G23: =VLOOKUP(B23,[1]NOx!$I$6:$I$101,1,FALSE) -> 83
A24: Deeside Power Station GT2 | B24: 84 | C24: EPR/XP3131VK | E24: Deeside Power (UK) Limited | G24: =VLOOKUP(B24,[1]NOx!$I$6:$I$101,1,FALSE) -> 84
A25: Drax Power Station Boiler Train | B25: 91 | C25: VP3530LS | E25: Drax Power Limited | G25: =VLOOKUP(B25,[1]NOx!$I$6:$I$101,1,FALSE) -> 91
A26: Castleford Power Station CCGT1 | B26: 92 | C26: BK1627IX | E26: E.ON UK Cogeneration Limited | G26: =VLOOKUP(B26,[1]NOx!$I$6:$I$101,1,FALSE) -> 92
A27: Thornhill Power Station CCGT1 | B27: 95 | C27: JP3430LC | E27: E.ON UK Cogeneration Limited | G27: =VLOOKUP(B27,[1]NOx!$I$6:$I$101,1,FALSE) -> 95
A28: Connah’s Quay Unit 1 | B28: 96 | C28: EPR/NP3037AF | E28: Uniper UK Limited | G28: =VLOOKUP(B28,[1]NOx!$I$6:$I$101,1,FALSE) -> 96
A29: Connah's Quay Unit 2 | B29: 97 | C29: EPR/NP3037AF | E29: Uniper UK Limited | G29: =VLOOKUP(B29,[1]NOx!$I$6:$I$101,1,FALSE) -> 97
A30: Connah’s Quay Unit 3 | B30: 98 | C30: EPR/NP3037AF | E30: Uniper UK Limited | G30: =VLOOKUP(B30,[1]NOx!$I$6:$I$101,1,FALSE) -> 98
A31: Connah’s Quay Unit 4 | B31: 99 | C31: EPR/NP3037AF | E31: Uniper UK Limited | G31: =VLOOKUP(B31,[1]NOx!$I$6:$I$101,1,FALSE) -> 99
A32: Cottam Development Centre Power Station GT1 | B32: 100 | C32: NP3033RD | E32: Uniper UK Limited | G32: =VLOOKUP(B32,[1]NOx!$I$6:$I$101,1,FALSE) -> 100
A33: Enfield Power Station GT1 | B33: 101 | C33: NP3833RC | E33: Uniper UK Limited | G33: =VLOOKUP(B33,[1]NOx!$I$6:$I$101,1,FALSE) -> 101
A34: Killingholme GT11 | B34: 108 | C34: VP3933RJ | E34: Uniper UK Limited | G34: =VLOOKUP(B34,[1]NOx!$I$6:$I$101,1,FALSE) -> 108
A35: Killingholme GT12 | B35: 109 | C35: VP3933RJ | E35: Uniper UK Limited | G35: =VLOOKUP(B35,[1]NOx!$I$6:$I$101,1,FALSE) -> 109
A36: Killingholme GT21 | B36: 110 | C36: VP3933RJ | E36: Uniper UK Limited | G36: =VLOOKUP(B36,[1]NOx!$I$6:$I$101,1,FALSE) -> 110
A37: Killingholme GT22 | B37: 111 | C37: VP3933RJ | E37: Uniper UK Limited | G37: =VLOOKUP(B37,[1]NOx!$I$6:$I$101,1,FALSE) -> 111
A38: Port of Liverpool CHP GT1 | B38: 115 | C38: BK3506IS | E38: E.On UK CHP Limited | G38: =VLOOKUP(B38,[1]NOx!$I$6:$I$101,1,FALSE) -> 115
A39: Ratcliffe on Soar Power Station | B39: 116 | C39: EP3133RZ | E39: Uniper UK Limited | G39: =VLOOKUP(B39,[1]NOx!$I$6:$I$101,1,FALSE) -> 116
A40: Winnington CHP GT | B40: 117 | C40: EP3337N | E40: Winnington CHP Limited | G40: =VLOOKUP(B40,[1]NOx!$I$6:$I$101,1,FALSE) -> 117
A41: Sandbach Power GT1 | B41: 118 | C41: BS5371IZ | E41: E.ON UK Cogeneration Limited | G41: =VLOOKUP(B41,[1]NOx!$I$6:$I$101,1,FALSE) -> 118
A42: Cottam Power Station Boiler Train | B42: 120 | C42: WP3135JL | E42: EDF Energy (Thermal Generation) Limited (Closed) | G42: =VLOOKUP(B42,[1]NOx!$I$6:$I$101,1,FALSE) -> 120
A43: EDF West Burton LCP 1 | B43: 130 | C43: SP3935LW | E43: EDF Energy (Thermal Generation) Limited | G43: =VLOOKUP(B43,[1]NOx!$I$6:$I$101,1,FALSE) -> 130
A44: EDF West Burton LCP 2 | B44: 131 | C44: SP3935LW | E44: EDF Energy (Thermal Generation) Limited | G44: =VLOOKUP(B44,[1]NOx!$I$6:$I$101,1,FALSE) -> 131
A45: Elean Power Station Biomass Boiler | B45: 135 | C45: AP3130LY | E45: EPR Ely Limited | G45: =VLOOKUP(B45,[1]NOx!$I$6:$I$101,1,FALSE) -> 135
A46: Peterhead Power Station Block | B46: 164 | C46: PPC/A/1008802 | E46: SSE | G46: =VLOOKUP(B46,[1]NOx!$I$6:$I$101,1,FALSE) -> 164
A47: Rugeley Power Boiler Plant | B47: 197 | C47: EP3538LB | E47: Rugeley Power Limited (Closed) | G47: =VLOOKUP(B47,[1]NOx!$I$6:$I$101,1,FALSE) -> 197
A48: KG Ethylene Plant 36-F-501A | B48: 200 | C48: PPC/A/1088953 | E48: Ineos Chemicals (Grangemouth) Limited | G48: =VLOOKUP(B48,[1]NOx!$I$6:$I$101,1,FALSE) -> 200
A49: KG Ethylene Plant 36-F-501B | B49: 201 | C49: PPC/A/1088953 | E49: Ineos Chemicals (Grangemouth) Limited | G49: =VLOOKUP(B49,[1]NOx!$I$6:$I$101,1,FALSE) -> 201
A50: Keadby Power Station GT1 | B50: 202 | C50: YP3133LL | E50: Keadby Generation Limited | G50: =VLOOKUP(B50,[1]NOx!$I$6:$I$101,1,FALSE) -> 202
A51: Keadby Power Station GT2 | B51: 203 | C51: YP3133LL | E51: Keadby Generation Limited | G51: =VLOOKUP(B51,[1]NOx!$I$6:$I$101,1,FALSE) -> 203
A52: Keadby Power Station GT3 | B52: 204 | C52: YP3133LL | E52: Keadby Generation Limited | G52: =VLOOKUP(B52,[1]NOx!$I$6:$I$101,1,FALSE) -> 204
A53: Kemsley CHP Package Boilers A-C | B53: 206 | C53: BJ7395IG | E53: E.On UK CHP Limited | G53: =VLOOKUP(B53,[1]NOx!$I$6:$I$101,1,FALSE) -> 206
A54: Kemsley CHP Package Boilers D-F 2 | B54: 207 | C54: BJ7395IG | E54: E.On UK CHP Limited | G54: =VLOOKUP(B54,[1]NOx!$I$6:$I$101,1,FALSE) -> 207
A55: Kemsley CHP - GT & WHRB A/B | B55: 208 | C55: BJ7395IG | E55: E.On UK CHP Limited | G55: =VLOOKUP(B55,[1]NOx!$I$6:$I$101,1,FALSE) -> 208
A56: Longannet Power Station | B56: 213 | C56: PPC/A/1008873 | E56: Scottish Power (Closed) | G56: =VLOOKUP(B56,[1]NOx!$I$6:$I$101,1,FALSE) -> 213
A57: Medway Power Station CT1 | B57: 218 | C57: HP3939LN | E57: Medway Power Limited | G57: =VLOOKUP(B57,[1]NOx!$I$6:$I$101,1,FALSE) -> 218
A58: Medway Power Station CT2 | B58: 219 | C58: HP3939LN | E58: Medway Power Limited | G58: =VLOOKUP(B58,[1]NOx!$I$6:$I$101,1,FALSE) -> 219
A59: Michelin Tyre Plant | B59: 220 | C59: PPC/E/0020035 | E59: Michelin Tyre Plc | G59: =VLOOKUP(B59,[1]NOx!$I$6:$I$101,1,FALSE) -> 220
A60: STD GT1/GT2 | B60: 221/414 | C60: FP3031HJ | E60: PX Limited | G60: =VLOOKUP(B60,[1]NOx!$I$6:$I$101,1,FALSE) -> 221/414
A61: Warrington Silica Natural Gas Boiler Train | B61: 254 | C61: RP3233GW | E61: PQ Silicas UK Limited | G61: =VLOOKUP(B61,[1]NOx!$I$6:$I$101,1,FALSE) -> 254
A62: Versalis UK Limited Grangemouth | B62: 264 | C62: PPC/A/1005112 | E62: Versalis UK Ltd | G62: =VLOOKUP(B62,[1]NOx!$I$6:$I$101,1,FALSE) -> 264
A63: Great Yarmouth Power Station GT1 | B63: 267 | C63: KP3531US | E63: RWE Generation UK Plc | G63: =VLOOKUP(B63,[1]NOx!$I$6:$I$101,1,FALSE) -> 267
A64: Hythe Power Station (Cogen CHP GT1) | B64: 269 | C64: EPR CP3139QJ | E64: RWE Generation UK Plc | G64: =VLOOKUP(B64,[1]NOx!$I$6:$I$101,1,FALSE) -> 269 | H64: was Npower Cogen (Hythe) Limited
A65: Hythe Power Station (Cogen Boiler Train) | B65: 268 | C65: EPR CP3139QJ | E65: RWE Generation UK Plc | G65: =VLOOKUP(B65,[1]NOx!$I$6:$I$101,1,FALSE) -> 268 | H65: was Npower Cogen (Hythe) Limited
A66: Ineos GT1 | B66: 271 | C66: HP3137ZK | E66: INEOS Nitriles (UK) Limited | G66: =VLOOKUP(B66,[1]NOx!$I$6:$I$101,1,FALSE) -> 271 | H66: was RWE Npower Cogen (Ineos Nitriles) | I66: Ineos GT1 | J66: 271 | K66: HP3137ZK
A67: Little Barford Power Station GT1 | B67: 272 | C67: AP3630LG | E67: RWE Generation UK Plc | G67: =VLOOKUP(B67,[1]NOx!$I$6:$I$101,1,FALSE) -> 272
A68: Little Barford Power Station GT2 | B68: 273 | C68: AP3630LG | E68: RWE Generation UK Plc | G68: =VLOOKUP(B68,[1]NOx!$I$6:$I$101,1,FALSE) -> 273
A69: Didcot B Module 5 | B69: 276 | C69: YP3930LZ | E69: RWE Generation UK Plc | G69: =VLOOKUP(B69,[1]NOx!$I$6:$I$101,1,FALSE) -> 276
A70: Didcot B Module 6 | B70: 277 | C70: YP3930LZ | E70: RWE Generation UK Plc | G70: =VLOOKUP(B70,[1]NOx!$I$6:$I$101,1,FALSE) -> 277
A71: Aberthaw Power Station | B71: 283 | C71: EPR/RP3133LD | E71: RWE Generation UK Plc | G71: =VLOOKUP(B71,[1]NOx!$I$6:$I$101,1,FALSE) -> 283
A72: Wilton Olefins Boilers | B72: 292 | C72: BS3590IE | E72: Sabic UK Petrochemicals Limited | G72: =VLOOKUP(B72,[1]NOx!$I$6:$I$101,1,FALSE) -> 292
A73: Snodland GT1 | B73: 294 | C73: BJ5706IM | E73: SSE Plc | G73: =VLOOKUP(B73,[1]NOx!$I$6:$I$101,1,FALSE) -> 294
A74: Chickerall Generation Site OCGT1 | B74: 295 | C74: FP3230LM | E74: SSEPG (Operations) Limited | G74: =VLOOKUP(B74,[1]NOx!$I$6:$I$101,1,FALSE) -> 295
A75: Burghfield Generation Site OCGT1 | B75: 296 | C75: ZP3130LJ | E75: SSEPG (Operations) Limited | G75: =VLOOKUP(B75,[1]NOx!$I$6:$I$101,1,FALSE) -> 296
A76: Redcar Power Station Boiler | B76: 297 | C76: JP3638HM | E76: Sahaviriya Steel Industries UK | G76: =VLOOKUP(B76,[1]NOx!$I$6:$I$101,1,FALSE) -> 297
A77: Saltend Co-generation Hull Boiler A4 | B77: 299 | C77: QP3539LE | E77: Saltend Cogeneration Company Limited | G77: =VLOOKUP(B77,[1]NOx!$I$6:$I$101,1,FALSE) -> 299
A78: Saltend Co-generation Hull Turbine A1 | B78: 300 | C78: QP3539LE | E78: Saltend Cogeneration Company Limited | G78: =VLOOKUP(B78,[1]NOx!$I$6:$I$101,1,FALSE) -> 300
A79: Saltend Co-generation Hull Turbine A2 | B79: 301 | C79: QP3539LE | E79: Saltend Cogeneration Company Limited | G79: =VLOOKUP(B79,[1]NOx!$I$6:$I$101,1,FALSE) -> 301
A80: Saltend Co-generation Hull Turbine A3 | B80: 302 | C80: QP3539LE | E80: Saltend Cogeneration Company Limited | G80: =VLOOKUP(B80,[1]NOx!$I$6:$I$101,1,FALSE) -> 302
A81: Scottish and Southern Energy Fiddlers Ferry | B81: 309 | C81: BS8192IV | E81: Keadby Generation Limited | G81: =VLOOKUP(B81,[1]NOx!$I$6:$I$101,1,FALSE) -> 309
A82: Scottish and Southern Energy Salt Union OCGT | B82: 311 | C82: SP3730BW | E82: SSE Generation Limited (Closed) | G82: =VLOOKUP(B82,[1]NOx!$I$6:$I$101,1,FALSE) -> 311
A83: Uskmouth Power Plant | B83: 312 | C83: EPR/LP3131SW | E83: Simec Uskmouth Power Limited | G83: =VLOOKUP(B83,[1]NOx!$I$6:$I$101,1,FALSE) -> 312
A84: Sellafield GT1 | B84: 316 | C84: BM4317IX | E84: Sellafield Limited | G84: =VLOOKUP(B84,[1]NOx!$I$6:$I$101,1,FALSE) -> 316
A85: Sellafield GT2 | B85: 317 | C85: BM4317IX | E85: Sellafield Limited | G85: =VLOOKUP(B85,[1]NOx!$I$6:$I$101,1,FALSE) -> 317
A86: Sellafield GT3 | B86: 318 | C86: BM4317IX | E86: Sellafield Limited | G86: =VLOOKUP(B86,[1]NOx!$I$6:$I$101,1,FALSE) -> 318
A87: Sellafield Aux Boiler | B87: 319 | C87: BM4317IX | E87: Sellafield Limited | G87: =VLOOKUP(B87,[1]NOx!$I$6:$I$101,1,FALSE) -> 319
A88: Boiler Plant | B88: 330 | C88: BS3824IJ | E88: Solvay Interox Limited (Closed) | G88: =VLOOKUP(B88,[1]NOx!$I$6:$I$101,1,FALSE) -> 330
A89: Port Talbot Service Boilers | B89: 337 | C89: EPR/BL7108IM | E89: Tata Steel UK Limited | G89: =VLOOKUP(B89,[1]NOx!$I$6:$I$101,1,FALSE) -> 337
A90: Port Talbot Mitchell Boiler | B90: 338 | C90: EPR/BL7108IM | E90: Tata Steel UK Limited | G90: =VLOOKUP(B90,[1]NOx!$I$6:$I$101,1,FALSE) -> 338
A91: Port Talbot A5 Boiler | B91: 339 | C91: EPR/BL7108IM | E91: Tata Steel UK Limited | G91: =VLOOKUP(B91,[1]NOx!$I$6:$I$101,1,FALSE) -> 339
A92: Port Talbot No. 6&7 Boilers | B92: 340 | C92: EPR/BL7108IM | E92: Tata Steel UK Limited | G92: =VLOOKUP(B92,[1]NOx!$I$6:$I$101,1,FALSE) -> 340
A93: British Steel Limited Scunthorpe Works 1 (Central Power Station Boiler Train) | B93: 341 | C93: HP3736AW | E93: British Steel Limited | G93: =VLOOKUP(B93,[1]NOx!$I$6:$I$101,1,FALSE) -> 341
A94: British Steel Limited Scunthorpe Works 2 (Turbo Blower House Boilers 1-4) | B94: 342 | C94: HP3736AW | E94: British Steel Limited | G94: =VLOOKUP(B94,[1]NOx!$I$6:$I$101,1,FALSE) -> 342
A95: British Steel Limited Scunthorpe Works 3 (Turbo Blower House Boilers 5-6) | B95: 343 | C95: HP3736AW | E95: British Steel Limited | G95: =VLOOKUP(B95,[1]NOx!$I$6:$I$101,1,FALSE) -> 343
A96: Greatham Works | B96: 354 | C96: TP3532PK | E96: Venator Materials UK Limited | G96: =VLOOKUP(B96,[1]NOx!$I$6:$I$101,1,FALSE) -> 354
A97: Kinneil Stack A1 (B -101) GT , Kinneil Stack A1 (B -101) Waste Heat Recovery Units | B97: 360 | C97: PPC/A1013107 | E97: INEOS FPS Limited | G97: =VLOOKUP(B97,[1]NOx!$I$6:$I$101,1,FALSE) -> 360
A98: Winnington CHP Boiler Train | B98: 408 | C98: EP3337N | E98: Winnington CHP Limited | G98: =VLOOKUP(B98,[1]NOx!$I$6:$I$101,1,FALSE) -> 408
A99: Port of Liverpool CHP - Package Boilers 1-3 | B99: 417 | C99: BK3506IS | E99: E.On UK CHP Limited | G99: =VLOOKUP(B99,[1]NOx!$I$6:$I$101,1,FALSE) -> 417
A100: Lynemouth Power Biomass Boiler | B100: 418 | C100: FP3137CG | E100: Lynemouth Power Limited | G100: =VLOOKUP(B100,[1]NOx!$I$6:$I$101,1,FALSE) -> 418
G102: Total 95

Sheet Lists (hidden)
F1: Operator Name | G1: EDF Energy (Thermal Generation) Limited (Closed)
A3: Reporting Year | C3: Operator Name | D3: Sum of LCP Reference | F3: Sites List | G3: Sum of LCP Reference
A4: 2016 | C4: AES Kilroot Power Limited | D4: 5 | F4: Cottam Power Station Boiler Train | G4: 120
A5: 2017 | C5: Arjo Wiggins | D5: 8
A6: 2018 | C6: British Salt Limited | D6: 32
A7: 2019 | C7: British Steel Limited | D7: 1026
A8: 2020 | C8: British Sugar Plc | D8: 110
A9: blank | C9: Centrica KL Limited | D9: 48
A10: Grand Total | C10: Centrica KPS Limited (Closed) | D10: 159
C11: Deeside Power (UK) Limited | D11: 167
C12: Dow Silicones UK Ltd | D12: 60
C13: Drax Power Limited | D13: 91
C14: DSM Nutritional Products (UK) Limited | D14: 39
C15: E.On UK CHP Limited | D15: 1153
C16: E.ON UK Cogeneration Limited | D16: 305
C17: EDF Energy (Thermal Generation) Limited | D17: 261
C18: EDF Energy (Thermal Generation) Limited (Closed) | D18: 120
C19: EP SHB Limited | D19: 150
C20: EPR Ely Limited | D20: 135
C21: Ineos Chemicals (Grangemouth) Limited | D21: 401
C22: INEOS FPS Limited | D22: 360
C23: Ineos Infrastructure (Grangemouth) Limited | D23: 85
C24: INEOS Nitriles (UK) Limited | D24: 271
C25: Keadby Generation Limited | D25: 918
C26: Lynemouth Power Limited | D26: 418
C27: Medway Power Limited | D27: 437
C28: Michelin Tyre Plc | D28: 220
C29: PQ Silicas UK Limited | D29: 254
C30: PX Limited | D30: 0
C31: Rugeley Power Limited (Closed) | D31: 197
C32: RWE Generation UK Plc | D32: 2185
C33: Sabic UK Petrochemicals Limited | D33: 292
C34: Sahaviriya Steel Industries UK | D34: 297
C35: Saltend Cogeneration Company Limited | D35: 1202
C36: Scottish Power (Closed) | D36: 213
C37: Sellafield Limited | D37: 1270
C38: Simec Uskmouth Power Limited | D38: 312
C39: Solvay Interox Limited (Closed) | D39: 330
C40: SSE | D40: 164
C41: SSE Generation Limited (Closed) | D41: 311
C42: SSE Plc | D42: 294
C43: SSEPG (Operations) Limited | D43: 591
C44: Tata Steel UK Limited | D44: 1354
C45: Uniper UK Limited | D45: 1145
C46: Venator Materials UK Limited | D46: 354
C47: Versalis UK Ltd | D47: 264
C48: Winnington CHP Limited | D48: 525
C49: Grand Total | D49: 18533

Sheet Sheet1 (hidden)

Sheet Sheet2 (hidden)
